lending/lending_fUSD_20241212
["ID","MTS","AMOUNT","RATE_DAILY","PERIOD"]
[345109253,1734022243845,-500.0,0.00020051,2]
[345109255,1734022243855,-502.96616494,0.00020051,2]
[345109257,1734022243864,-500.0,0.00020051,2]
[345109259,1734022243874,-500.0,0.00020051,2]
[345109261,1734022243883,-500.0,0.00020051,2]
[345109263,1734022243894,-500.0,0.00020051,2]
[345109266,1734022243904,-502.95116191,0.00020051,2]
[345109268,1734022243913,-500.0,0.00020051,2]
[345109270,1734022243923,-500.0,0.00020051,2]
[345109272,1734022243932,-500.0,0.00020051,2]
[345109274,1734022243942,-261.71066524,0.00020051,2]
[345109276,1734022243951,-500.0,0.00020051,2]
[345109278,1734022243961,-500.0,0.00020051,2]
[345109280,1734022243970,-403.42728156,0.00020051,2]
[345109281,1734022243979,-500.0,0.00020051,2]
[345109282,1734022243989,-500.0,0.00020051,2]
[345109283,1734022243998,-500.0,0.00020051,2]
[345109284,1734022244008,-578.64,0.00020051,2]
[345109285,1734022244017,-500.0,0.00020051,2]
[345109286,1734022244026,-500.0,0.00020051,2]
[345109287,1734022244035,-494.17929226,0.00020051,2]
[345109288,1734022244045,-500.0,0.00020051,2]
[345109289,1734022244055,-500.60631443,0.00020051,2]
[345109290,1734022244066,-500.0,0.00020051,2]
[345109291,1734022244075,-239.76449758,0.00020051,2]
[345109292,1734022244085,-649.96,0.00020051,2]
[345109293,1734022244095,-2272.17997385,0.00020143,2]
[345109295,1734022244105,-8233.28348084,0.00020153,2]
[345109297,1734022244119,-6830.02917111,0.00020153,2]
[345109298,1734022244130,-32404.45540366,0.00020153,2]
[345109299,1734022244447,-332.54659203,0.00020153,2]
[345109300,1734022244535,-33200.75939751,0.00020153,2]
[345109301,1734022244547,-358.4,0.00020153,2]
[345109302,1734022244558,-722.88000006,0.00020153,2]
[345109303,1734022244574,-1302.42204229,0.00020153,2]
[345109304,1734022244585,-300.1192,0.00020153,2]
[345109305,1734022244598,-633.58116806,0.00020153,2]
[345109306,1734022244618,-19926.0,0.00020153,2]
[345109307,1734022244630,-46504.41208341,0.00020153,2]
[345109308,1734022244643,-645.45,0.00020163,2]
[345109309,1734022244654,-28090.78485899,0.00020173,2]
[345109310,1734022244687,-5338.55544064,0.00020173,2]
[345109311,1734022244700,-500.0,0.00020272,2]
[345109312,1734022244716,-500.0,0.00020273,2]
[345109313,1734022244726,-500.0,0.00020273,2]
[345109314,1734022244736,-500.0,0.00020273,2]
[345109315,1734022244748,-398.87769102,0.00020273,2]
[345109316,1734022244758,-500.0,0.00020273,2]
[345109317,1734022244768,-309.21153525,0.00020273,2]
[345109318,1734022244780,-190.78846475,0.00020273,2]
[345109319,1734022244790,-231.46990156,0.00020273,2]
[345109320,1734022245230,-741.65,0.00020273,2]
[345109321,1734022245242,-173.62009844,0.00020273,2]
[345109322,1734022245252,-500.0,0.00020273,2]
[345109323,1734022245262,-782.13,0.00020273,2]
[345109324,1734022245271,-500.53,0.00020273,2]
[345109325,1734022245281,-500.0,0.00020273,2]
[345109326,1734022245291,-1673.74,0.00020273,2]
[345109327,1734022245301,-500.0,0.00020273,2]
[345109328,1734022245310,-500.0,0.00020273,2]
[345109329,1734022245319,-610.81,0.00020273,2]
[345109330,1734022245329,-500.0,0.00020273,2]
[345109331,1734022245338,-500.0,0.00020273,2]
[345109332,1734022245347,-500.0,0.00020273,2]
[345109333,1734022245357,-500.0,0.00020273,2]
[345109334,1734022245366,-500.0,0.00020273,2]
[345109335,1734022245376,-500.0,0.00020273,2]
[345109336,1734022245385,-645.16990156,0.00020273,2]
[345109337,1734022245398,-576.82009844,0.00020273,2]
[345109338,1734022245407,-500.0,0.00020273,2]
[345109339,1734022245416,-565.6,0.00020273,2]
[345109340,1734022245426,-500.0,0.00020273,2]
[345109341,1734022245436,-858.22,0.00020273,2]
[345109342,1734022245447,-500.0,0.00020273,2]
[345109343,1734022245456,-1890.78,0.00020273,2]
[345109344,1734022245465,-500.0,0.00020273,2]
[345109345,1734022245475,-500.0,0.00020273,2]
[345109346,1734022245484,-500.0,0.00020273,2]
[345109347,1734022245494,-500.0,0.00020273,2]
[345109348,1734022245503,-1315.92,0.00020273,2]
[345109349,1734022245512,-500.0,0.00020273,2]
[345109350,1734022245522,-500.0,0.00020273,2]
[345109351,1734022245532,-500.0,0.00020273,2]
[345109352,1734022245542,-500.0,0.00020273,2]
[345109353,1734022245551,-1416.4,0.00020273,2]
[345109354,1734022245561,-500.0,0.00020273,2]
[345109355,1734022245570,-500.0,0.00020273,2]
[345109356,1734022245580,-500.0,0.00020273,2]
[345109357,1734022245589,-500.0,0.00020273,2]
[345109358,1734022245599,-860.5,0.00020273,2]
[345109359,1734022245608,-500.0,0.00020273,2]
[345109360,1734022245617,-500.0,0.00020273,2]
[345109361,1734022245628,-500.0,0.00020273,2]
[345109362,1734022245637,-500.0,0.00020273,2]
[345109363,1734022245648,-500.0,0.00020273,2]
[345109364,1734022245658,-500.0,0.00020273,2]
[345109365,1734022245669,-555.05,0.00020273,2]
[345109366,1734022245678,-500.0,0.00020273,2]
[345109367,1734022245688,-500.0,0.00020273,2]
[345109368,1734022245702,-509.83193938,0.00020273,2]
[345109369,1734022245712,-500.0,0.00020273,2]
[345109370,1734022245721,-500.0,0.00020273,2]
[345109371,1734022245731,-500.0,0.00020273,2]
[345109372,1734022245741,-500.0,0.00020273,2]
[345109373,1734022245750,-500.0,0.00020273,2]
[345109374,1734022245759,-500.0,0.00020273,2]
[345109375,1734022245768,-500.0,0.00020273,2]
[345109376,1734022245780,-842.12,0.00020273,2]
[345109377,1734022245790,-886.16,0.00020273,2]
[345109378,1734022245799,-500.0,0.00020273,2]
[345109379,1734022245808,-500.0,0.00020273,2]
[345109380,1734022245817,-391.78192873,0.00020273,2]
[345109381,1734022245827,-500.0,0.00020273,2]
[345109382,1734022245836,-529.98279682,0.00020273,2]
[345109383,1734022245845,-500.0,0.00020273,2]
[345109384,1734022245854,-500.0,0.00020273,2]
[345109385,1734022245863,-584.31,0.00020273,2]
[345109386,1734022245873,-500.0,0.00020273,2]
[345109387,1734022245882,-633.15,0.00020273,2]
[345109388,1734022245891,-500.0,0.00020273,2]
[345109389,1734022245902,-1844.4,0.00020273,2]
[345109390,1734022245911,-500.0,0.00020273,2]
[345109391,1734022245920,-809.03,0.00020273,2]
[345109392,1734022245930,-349.05891353,0.00020273,2]
[345109393,1734022245939,-879.44,0.00020273,2]
[345109394,1734022245949,-844.36,0.00020273,2]
[345109395,1734022245959,-500.0,0.00020273,2]
[345109396,1734022245968,-504.27793765,0.00020273,2]
[345109397,1734022245978,-500.0,0.00020273,2]
[345109398,1734022245987,-500.0,0.00020273,2]
[345109399,1734022245997,-500.0,0.00020273,2]
[345109400,1734022246007,-500.0,0.00020273,2]
[345109401,1734022246017,-500.0,0.00020273,2]
[345109402,1734022246027,-500.0,0.00020273,2]
[345109403,1734022246036,-910.32,0.00020273,2]
[345109404,1734022246046,-500.0,0.00020273,2]
[345109405,1734022246056,-500.0,0.00020273,2]
[345109406,1734022246065,-343.50367112,0.00020273,2]
[345109407,1734022246074,-500.0,0.00020273,2]
[345109408,1734022246085,-600.15755588,0.00020273,2]
[345109409,1734022246094,-500.0,0.00020273,2]
[345109410,1734022246104,-500.0,0.00020273,2]
[345109411,1734022246114,-1000.0,0.00020299,2]
[345109412,1734022246125,-200.0,0.00020315,2]
[345109413,1734022246135,-887.97,0.00020325,2]
[345109414,1734022246145,-338.82,0.00020325,2]
[345109415,1734022246154,-500.0,0.00020325,2]
[345109416,1734022246163,-158.33904886,0.00020325,2]
[345109417,1734022246173,-500.0,0.00020325,2]
[345109418,1734022246183,-494.46862254,0.00020325,2]
[345109419,1734022246193,-500.0,0.00020325,2]
[345109420,1734022246203,-508.62,0.00020325,2]
[345109421,1734022246212,-500.0,0.00020325,2]
[345109422,1734022246222,-500.0,0.00020325,2]
[345109423,1734022246232,-385.10945967,0.00020325,2]
[345109424,1734022246267,-114.89054033,0.00020325,2]
[345109425,1734022246276,-500.0,0.00020325,2]
[345109426,1734022246286,-500.0,0.00020325,2]
[345109427,1734022246295,-500.0,0.00020325,2]
[345109428,1734022246305,-692.05,0.00020325,2]
[345109429,1734022246314,-500.0,0.00020325,2]
[345109430,1734022246323,-502.72972992,0.00020325,2]
[345109431,1734022246333,-500.0,0.00020325,2]
[345109432,1734022246342,-500.0,0.00020325,2]
[345109433,1734022246352,-722.51,0.00020325,2]
[345109434,1734022246361,-505.88513367,0.00020325,2]
[345109435,1734022246371,-500.0,0.00020325,2]
[345109436,1734022246381,-698.19,0.00020325,2]
[345109437,1734022246390,-500.0,0.00020325,2]
[345109438,1734022246402,-2733.56,0.00020325,2]
[345109439,1734022246411,-500.0,0.00020325,2]
[345109440,1734022246420,-500.0,0.00020325,2]
[345109441,1734022246429,-1629.13,0.00020325,2]
[345109442,1734022246438,-430.27617402,0.00020325,2]
[345109443,1734022246447,-500.0,0.00020325,2]
[345109444,1734022246457,-500.0,0.00020325,2]
[345109445,1734022246466,-500.0,0.00020325,2]
[345109446,1734022246475,-500.0,0.00020325,2]
[345109447,1734022246484,-500.0,0.00020325,2]
[345109448,1734022246493,-500.0,0.00020325,2]
[345109449,1734022246502,-505.31676908,0.00020325,2]
[345109450,1734022246512,-515.4306471,0.00020325,2]
[345109451,1734022246522,-500.0,0.00020325,2]
[345109452,1734022246531,-500.0,0.00020325,2]
[345109453,1734022246541,-500.0,0.00020325,2]
[345109454,1734022246554,-500.0,0.00020325,2]
[345109455,1734022246567,-500.0,0.00020325,2]
[345109456,1734022246581,-500.0,0.00020325,2]
[345109457,1734022246594,-500.0,0.00020325,2]
[345109458,1734022246605,-500.0,0.00020325,2]
[345109459,1734022246617,-500.0,0.00020325,2]
[345109461,1734022246630,-500.0,0.00020325,2]
[345109463,1734022246645,-500.0,0.00020325,2]
[345109464,1734022246658,-578.64,0.00020325,2]
[345109465,1734022246673,-500.0,0.00020325,2]
[345109466,1734022246685,-500.0,0.00020325,2]
[345109467,1734022246699,-500.0,0.00020325,2]
[345109468,1734022246713,-500.0,0.00020325,2]
[345109469,1734022246724,-649.96,0.00020325,2]
[345109470,1734022246735,-500.0,0.00020348,2]
[345109471,1734022246750,-4106.6243,0.00020362,2]
[345109472,1734022246762,-1038.09,0.00020366,2]
[345109473,1734022246775,-500.0,0.00020447,2]
[345109474,1734022246788,-1600.0,0.00020459,2]
[345109475,1734022246800,-969.23,0.00020485,2]
[345109476,1734022246813,-500.61813983,0.00020494,2]
[345109477,1734022246825,-200.0,0.000205,8]
[345109478,1734022246837,-500.0,0.00020547,2]
[345109479,1734022246849,-500.0,0.00020547,2]
[345109480,1734022246862,-500.0,0.00020547,2]
[345109481,1734022246874,-500.0,0.00020547,2]
[345109482,1734022246888,-1146.74,0.00020547,2]
[345109483,1734022246903,-500.0,0.00020547,2]
[345109484,1734022246914,-782.13,0.00020547,2]
[345109485,1734022246927,-500.53,0.00020547,2]
[345109486,1734022246940,-500.0,0.00020547,2]
[345109487,1734022246953,-1673.74,0.00020547,2]
[345109488,1734022246965,-500.0,0.00020547,2]
[345109489,1734022246977,-500.0,0.00020547,2]
[345109490,1734022246988,-610.81,0.00020547,2]
[345109491,1734022246999,-500.0,0.00020547,2]
[345109492,1734022247010,-500.0,0.00020547,2]
[345109493,1734022247021,-500.0,0.00020547,2]
[345109494,1734022247036,-500.0,0.00020547,2]
[345109495,1734022247049,-500.0,0.00020547,2]
[345109496,1734022247060,-500.0,0.00020547,2]
[345109497,1734022247071,-1221.99,0.00020547,2]
[345109498,1734022247083,-500.0,0.00020547,2]
[345109499,1734022247094,-565.6,0.00020547,2]
[345109500,1734022247107,-500.0,0.00020547,2]
[345109501,1734022247119,-858.22,0.00020547,2]
[345109502,1734022247130,-500.0,0.00020547,2]
[345109503,1734022247141,-1890.78,0.00020547,2]
[345109504,1734022247152,-500.0,0.00020547,2]
[345109505,1734022247164,-500.0,0.00020547,2]
[345109506,1734022247175,-500.0,0.00020547,2]
[345109507,1734022247189,-500.0,0.00020547,2]
[345109508,1734022247200,-1315.92,0.00020547,2]
[345109509,1734022247211,-235.21,0.00020547,2]
[345109510,1734022247223,-500.0,0.00020547,2]
[345109511,1734022247234,-500.0,0.00020547,2]
[345109512,1734022247245,-500.0,0.00020547,2]
[345109513,1734022247256,-1416.4,0.00020547,2]
[345109514,1734022247267,-500.0,0.00020547,2]
[345109515,1734022247278,-500.0,0.00020547,2]
[345109516,1734022247289,-500.0,0.00020547,2]
[345109517,1734022247300,-500.0,0.00020547,2]
[345109518,1734022247311,-860.5,0.00020547,2]
[345109519,1734022247322,-500.0,0.00020547,2]
[345109520,1734022247333,-500.0,0.00020547,2]
[345109521,1734022247344,-500.0,0.00020547,2]
[345109522,1734022247355,-500.0,0.00020547,2]
[345109523,1734022247366,-500.0,0.00020547,2]
[345109524,1734022247377,-555.05,0.00020547,2]
[345109525,1734022247387,-500.0,0.00020547,2]
[345109526,1734022247398,-500.0,0.00020547,2]
[345109527,1734022247409,-500.0,0.00020547,2]
[345109528,1734022247421,-500.0,0.00020547,2]
[345109529,1734022247432,-500.0,0.00020547,2]
[345109530,1734022247443,-500.0,0.00020547,2]
[345109531,1734022247454,-500.0,0.00020547,2]
[345109532,1734022247464,-500.0,0.00020547,2]
[345109533,1734022247475,-842.12,0.00020547,2]
[345109534,1734022247487,-886.16,0.00020547,2]
[345109535,1734022247500,-500.0,0.00020547,2]
[345109536,1734022247511,-500.0,0.00020547,2]
[345109537,1734022247522,-500.0,0.00020547,2]
[345109538,1734022247533,-500.0,0.00020547,2]
[345109539,1734022247544,-500.0,0.00020547,2]
[345109540,1734022247556,-584.31,0.00020547,2]
[345109541,1734022247567,-500.0,0.00020547,2]
[345109542,1734022247578,-633.15,0.00020547,2]
[345109543,1734022247589,-500.0,0.00020547,2]
[345109544,1734022247600,-1844.4,0.00020547,2]
[345109545,1734022247611,-500.0,0.00020547,2]
[345109546,1734022247622,-809.03,0.00020547,2]
[345109547,1734022247634,-879.44,0.00020547,2]
[345109548,1734022247647,-844.36,0.00020547,2]
[345109549,1734022247663,-500.0,0.00020547,2]
[345109550,1734022247675,-500.0,0.00020547,2]
[345109551,1734022247688,-500.0,0.00020547,2]
[345109552,1734022247707,-500.0,0.00020547,2]
[345109553,1734022247720,-500.0,0.00020547,2]
[345109554,1734022247732,-500.0,0.00020547,2]
[345109555,1734022247744,-910.32,0.00020547,2]
[345109556,1734022247755,-500.0,0.00020547,2]
[345109557,1734022247766,-500.0,0.00020547,2]
[345109558,1734022247778,-500.0,0.00020547,2]
[345109559,1734022247789,-20376.4,0.00020548,2]
[345109560,1734022247802,-887.97,0.00020599,2]
[345109561,1734022247813,-500.0,0.00020599,2]
[345109562,1734022247825,-500.0,0.00020599,2]
[345109563,1734022247836,-309.0531578,0.00020599,2]
[345109564,1734022247848,-508.62,0.00020599,2]
[345109565,1734022247859,-500.0,0.00020599,2]
[345109566,1734022247871,-501.50988259,0.00020599,2]
[345109567,1734022247882,-593.08856629,0.00020599,2]
[345109568,1734022247895,-500.0,0.00020599,2]
[345109569,1734022247907,-692.05,0.00020599,2]
[345109570,1734022247919,-334.36745806,0.00020599,2]
[345109571,1734022247930,-500.0,0.00020599,2]
[345109572,1734022247941,-722.51,0.00020599,2]
[345109573,1734022247952,-500.0,0.00020599,2]
[345109574,1734022247963,-698.19,0.00020599,2]
[345109575,1734022247975,-500.0,0.00020599,2]
[345109576,1734022247985,-2733.56,0.00020599,2]
[345109577,1734022247994,-212.25624537,0.00020599,2]
[345109578,1734022248003,-508.52310396,0.00020599,2]
[345109579,1734022248012,-1629.13,0.00020599,2]
[345109580,1734022248021,-500.0,0.00020599,2]
[345109581,1734022248031,-500.0,0.00020599,2]
[345109582,1734022248040,-500.0,0.00020599,2]
[345109583,1734022248049,-500.0,0.00020599,2]
[345109584,1734022248061,-500.0,0.00020599,2]
[345109585,1734022248070,-312.23316381,0.00020599,2]
[345109586,1734022248079,-500.0,0.00020599,2]
[345109587,1734022248088,-503.91798988,0.00020599,2]
[345109588,1734022248098,-500.0,0.00020599,2]
[345109589,1734022248107,-499.28496443,0.00020599,2]
[345109590,1734022248116,-500.0,0.00020599,2]
[345109591,1734022248126,-444.58793697,0.00020599,2]
[345109592,1734022248135,-502.59662041,0.00020599,2]
[345109593,1734022248148,-500.0,0.00020599,2]
[345109594,1734022248157,-500.0,0.00020599,2]
[345109595,1734022248167,-605.08619408,0.00020599,2]
[345109596,1734022248178,-578.64,0.00020599,2]
[345109597,1734022248188,-500.0,0.00020599,2]
[345109598,1734022248197,-500.0,0.00020599,2]
[345109599,1734022248207,-500.0,0.00020599,2]
[345109600,1734022248216,-500.0,0.00020599,2]
[345109601,1734022248227,-649.96,0.00020599,2]
[345109602,1734022248237,-500.0,0.00020821,2]
[345109603,1734022248247,-500.0,0.00020821,2]
[345109604,1734022248502,-500.0,0.00020821,2]
[345109605,1734022248522,-500.0,0.00020821,2]
[345109606,1734022248532,-1146.74,0.00020821,2]
[345109607,1734022248542,-500.0,0.00020821,2]
[345109608,1734022248551,-782.13,0.00020821,2]
[345109609,1734022248560,-500.53,0.00020821,2]
[345109610,1734022248570,-500.0,0.00020821,2]
[345109611,1734022248580,-1673.74,0.00020821,2]
[345109612,1734022248590,-500.0,0.00020821,2]
[345109613,1734022248599,-500.0,0.00020821,2]
[345109614,1734022248609,-610.81,0.00020821,2]
[345109615,1734022248618,-500.0,0.00020821,2]
[345109616,1734022248627,-500.0,0.00020821,2]
[345109617,1734022248637,-500.0,0.00020821,2]
[345109618,1734022248648,-500.0,0.00020821,2]
[345109619,1734022248658,-500.0,0.00020821,2]
[345109620,1734022248668,-500.0,0.00020821,2]
[345109621,1734022248678,-1221.99,0.00020821,2]
[345109622,1734022248690,-500.0,0.00020821,2]
[345109623,1734022248703,-565.6,0.00020821,2]
[345109624,1734022248713,-500.0,0.00020821,2]
[345109625,1734022248723,-858.22,0.00020821,2]
[345109626,1734022248735,-316.13342046,0.00020821,2]
[345109627,1734022248745,-1890.78,0.00020821,2]
[345109628,1734022248755,-500.0,0.00020821,2]
[345109629,1734022248765,-208.71116083,0.00020821,2]
[345109630,1734022248775,-500.0,0.00020821,2]
[345109631,1734022248785,-500.0,0.00020821,2]
[345109632,1734022248795,-1315.92,0.00020821,2]
[345109633,1734022248805,-500.0,0.00020821,2]
[345109634,1734022248815,-500.0,0.00020821,2]
[345109635,1734022248824,-500.0,0.00020821,2]
[345109636,1734022248834,-1416.4,0.00020821,2]
[345109637,1734022248844,-500.0,0.00020821,2]
[345109638,1734022248853,-636.63900951,0.00020821,2]
[345109639,1734022248863,-500.0,0.00020821,2]
[345109640,1734022248872,-500.0,0.00020821,2]
[345109641,1734022248882,-860.5,0.00020821,2]
[345109642,1734022248891,-500.0,0.00020821,2]
[345109643,1734022248904,-500.0,0.00020821,2]
[345109644,1734022248914,-500.0,0.00020821,2]
[345109645,1734022248923,-500.0,0.00020821,2]
[345109646,1734022248933,-500.0,0.00020821,2]
[345109647,1734022248943,-555.05,0.00020821,2]
[345109648,1734022248952,-500.0,0.00020821,2]
[345109649,1734022248961,-500.0,0.00020821,2]
[345109650,1734022248970,-500.0,0.00020821,2]
[345109651,1734022248980,-500.0,0.00020821,2]
[345109652,1734022248990,-500.0,0.00020821,2]
[345109653,1734022248999,-500.0,0.00020821,2]
[345109654,1734022249009,-500.0,0.00020821,2]
[345109655,1734022249019,-500.0,0.00020821,2]
[345109656,1734022249028,-842.12,0.00020821,2]
[345109657,1734022249037,-886.16,0.00020821,2]
[345109658,1734022249046,-500.0,0.00020821,2]
[345109659,1734022249055,-340.49717228,0.00020821,2]
[345109660,1734022249065,-283.59,0.00020821,2]
[345109661,1734022249074,-500.0,0.00020821,2]
[345109662,1734022249083,-511.8259086,0.00020821,2]
[345109663,1734022249092,-584.31,0.00020821,2]
[345109664,1734022249102,-633.15,0.00020821,2]
[345109665,1734022249111,-500.0,0.00020821,2]
[345109666,1734022249121,-500.0,0.00020821,2]
[345109667,1734022249130,-1844.4,0.00020821,2]
[345109668,1734022249139,-500.0,0.00020821,2]
[345109669,1734022249151,-809.03,0.00020821,2]
[345109670,1734022249161,-879.44,0.00020821,2]
[345109671,1734022249171,-844.36,0.00020821,2]
[345109672,1734022249180,-500.0,0.00020821,2]
[345109673,1734022249189,-500.0,0.00020821,2]
[345109674,1734022249198,-500.0,0.00020821,2]
[345109675,1734022249208,-500.0,0.00020821,2]
[345109676,1734022249217,-500.0,0.00020821,2]
[345109677,1734022249227,-502.95000887,0.00020821,2]
[345109678,1734022249237,-910.32,0.00020821,2]
[345109679,1734022249247,-500.0,0.00020821,2]
[345109680,1734022249256,-500.0,0.00020821,2]
[345109681,1734022249265,-500.0,0.00020821,2]
[345109682,1734022249275,-150.0,0.00020835,2]
[345109683,1734022249284,-976.61,0.00020844,2]
[345109684,1734022249293,-887.97,0.00020873,2]
[345109685,1734022249303,-500.0,0.00020873,2]
[345109686,1734022249312,-500.0,0.00020873,2]
[345109687,1734022249321,-508.62,0.00020873,2]
[345109688,1734022249331,-500.0,0.00020873,2]
[345109689,1734022249340,-475.02218295,0.00020873,2]
[345109690,1734022249349,-692.05,0.00020873,2]
[345109691,1734022249358,-500.0,0.00020873,2]
[345109692,1734022249367,-722.51,0.00020873,2]
[345109693,1734022249377,-500.0,0.00020873,2]
[345109694,1734022249386,-698.19,0.00020873,2]
[345109695,1734022249396,-500.0,0.00020873,2]
[345109696,1734022249406,-2733.56,0.00020873,2]
[345109697,1734022249416,-1629.13,0.00020873,2]
[345109698,1734022249425,-500.0,0.00020873,2]
[345109699,1734022249435,-500.0,0.00020873,2]
[345109700,1734022249444,-500.0,0.00020873,2]
[345109701,1734022249455,-500.0,0.00020873,2]
[345109702,1734022249463,-161.55063244,0.00020873,2]
[345109703,1734022249474,-482.38971387,0.00020873,2]
[345109704,1734022249483,-507.8889922,0.00020873,2]
[345109705,1734022249494,-500.0,0.00020873,2]
[345109706,1734022249503,-501.12621797,0.00020873,2]
[345109707,1734022249514,-500.0,0.00020873,2]
[345109708,1734022249523,-578.64,0.00020873,2]
[345109709,1734022249533,-340.72445605,0.00020873,2]
[345109710,1734022249543,-500.0,0.00020873,2]
[345109711,1734022249552,-500.0,0.00020873,2]
[345109712,1734022249562,-500.0,0.00020873,2]
[345109713,1734022249571,-649.96,0.00020873,2]
[345109714,1734022249582,-180.11894651,0.00020882,2]
[345109715,1734022249591,-33429.34029959,0.00020883,2]
[345109716,1734022249600,-500.0,0.00020896,2]
[345109717,1734022249610,-150748.88853897,0.00020955,2]
[345109718,1734022249619,-229.13684399,0.00020995,2]
[345109719,1734022249629,-650.0,0.00021,2]
[345109720,1734022249639,-500.0,0.00021095,2]
[345109721,1734022249652,-500.0,0.00021095,2]
[345109722,1734022249661,-500.0,0.00021095,2]
[345109723,1734022249673,-500.0,0.00021095,2]
[345109724,1734022249683,-1146.74,0.00021095,2]
[345109725,1734022249693,-500.0,0.00021095,2]
[345109726,1734022249708,-782.13,0.00021095,2]
[345109727,1734022249724,-500.53,0.00021095,2]
[345109728,1734022249734,-500.0,0.00021095,2]
[345109729,1734022249744,-1673.74,0.00021095,2]
[345109730,1734022249754,-500.0,0.00021095,2]
[345109731,1734022249763,-500.0,0.00021095,2]
[345109732,1734022249773,-610.81,0.00021095,2]
[345109733,1734022249783,-500.0,0.00021095,2]
[345109734,1734022249792,-500.0,0.00021095,2]
[345109735,1734022249802,-500.0,0.00021095,2]
[345109736,1734022249811,-500.0,0.00021095,2]
[345109737,1734022249821,-602.32217196,0.00021095,2]
[345109738,1734022249831,-500.0,0.00021095,2]
[345109739,1734022249840,-1221.99,0.00021095,2]
[345109740,1734022249850,-337.47163701,0.00021095,2]
[345109741,1734022249861,-565.6,0.00021095,2]
[345109742,1734022249871,-500.0,0.00021095,2]
[345109743,1734022249880,-858.22,0.00021095,2]
[345109744,1734022249890,-1890.78,0.00021095,2]
[345109745,1734022249902,-233.51722248,0.00021095,2]
[345109746,1734022249912,-500.0,0.00021095,2]
[345109747,1734022249921,-500.0,0.00021095,2]
[345109748,1734022249931,-1315.92,0.00021095,2]
[345109749,1734022249940,-595.27,0.00021095,2]
[345109750,1734022249950,-500.0,0.00021095,2]
[345109751,1734022249959,-500.0,0.00021095,2]
[345109752,1734022249969,-1416.4,0.00021095,2]
[345109753,1734022249978,-500.0,0.00021095,2]
[345109754,1734022249987,-500.0,0.00021095,2]
[345109755,1734022249996,-500.0,0.00021095,2]
[345109756,1734022250006,-860.5,0.00021095,2]
[345109757,1734022250015,-500.0,0.00021095,2]
[345109758,1734022250024,-500.0,0.00021095,2]
[345109759,1734022250033,-500.0,0.00021095,2]
[345109760,1734022250042,-500.0,0.00021095,2]
[345109761,1734022250051,-500.0,0.00021095,2]
[345109762,1734022250060,-555.05,0.00021095,2]
[345109763,1734022250069,-272.12858663,0.00021095,2]
[345109764,1734022250079,-177.8942856,0.00021095,2]
[345109765,1734022250088,-500.0,0.00021095,2]
[345109766,1734022250097,-500.0,0.00021095,2]
[345109767,1734022250106,-549.27805059,0.00021095,2]
[345109768,1734022250117,-500.0,0.00021095,2]
[345109769,1734022250126,-500.0,0.00021095,2]
[345109770,1734022250135,-500.0,0.00021095,2]